fUST/lending_fUST_20250527
["ID","MTS","AMOUNT","RATE_DAILY","PERIOD"]
[362473820,1748328547967,-500.0,0.00016318,2]
[362473821,1748328547990,-500.0,0.00016318,2]
[362473822,1748328548012,-500.0,0.00016318,2]
[362473823,1748328548034,-158.09709187,0.00016318,2]
[362473824,1748328548056,-500.0,0.00016318,2]
[362473825,1748328548083,-500.0,0.00016318,2]
[362473826,1748328548106,-799.6804675,0.00016318,2]
[362473827,1748328548132,-799.6804675,0.00016318,2]
[362473828,1748328548157,-799.6804675,0.00016318,2]
[362473829,1748328548339,-799.6804675,0.00016318,2]
[362473830,1748328548364,-799.6804675,0.00016318,2]
[362473831,1748328548386,-799.6804675,0.00016318,2]
[362473832,1748328548408,-799.6804675,0.00016318,2]
[362473833,1748328548430,-799.6804675,0.00016318,2]
[362473834,1748328548452,-799.6804675,0.00016318,2]
[362473835,1748328548475,-799.6804675,0.00016318,2]
[362473836,1748328548498,-799.6804675,0.00016318,2]
[362473837,1748328548520,-799.6804675,0.00016318,2]
[362473838,1748328548542,-799.6804675,0.00016318,2]
[362473839,1748328548564,-799.6804675,0.00016318,2]
[362473840,1748328548586,-799.6804675,0.00016318,2]
[362473841,1748328548609,-799.6804675,0.00016318,2]
[362473842,1748328548633,-799.6804675,0.00016318,2]
[362473843,1748328548657,-799.6804675,0.00016318,2]
[362473844,1748328548683,-799.6804675,0.00016318,2]
[362473845,1748328548708,-799.6804675,0.00016318,2]
[362473846,1748328548731,-799.6804675,0.00016318,2]
[362473847,1748328548754,-799.6804675,0.00016318,2]
[362473848,1748328548778,-799.6804675,0.00016318,2]
[362473849,1748328548801,-799.6804675,0.00016318,2]
[362473850,1748328548825,-799.6804675,0.00016318,2]
[362473851,1748328548848,-799.6804675,0.00016318,2]
[362473852,1748328548872,-799.6804675,0.00016318,2]
[362473853,1748328548897,-799.6804675,0.00016318,2]
[362473854,1748328548922,-799.6804675,0.00016318,2]
[362473855,1748328548947,-799.6804675,0.00016318,2]
[362473856,1748328548972,-799.6804675,0.00016318,2]
[362473857,1748328548995,-799.6804675,0.00016318,2]
[362473858,1748328549020,-799.6804675,0.00016318,2]
[362473859,1748328549045,-799.6804675,0.00016318,2]
[362473860,1748328549071,-799.6804675,0.00016318,2]
[362473861,1748328549096,-799.6804675,0.00016318,2]
[362473862,1748328549120,-799.6804675,0.00016318,2]
[362473863,1748328549144,-799.6804675,0.00016318,2]
[362473864,1748328549168,-799.6804675,0.00016318,2]
[362473865,1748328549191,-799.6804675,0.00016318,2]
[362473866,1748328549216,-500.0,0.00016318,2]
[362473867,1748328549238,-500.0,0.00016318,2]
[362473868,1748328549260,-500.0,0.00016318,2]
[362473869,1748328549284,-500.0,0.00016318,2]
[362473870,1748328549309,-500.0,0.00016318,2]
[362473871,1748328549332,-500.0,0.00016318,2]
[362473872,1748328549356,-500.0,0.00016318,2]
[362473873,1748328549378,-500.0,0.00016318,2]
[362473874,1748328549401,-500.0,0.00016318,2]
[362473875,1748328549424,-500.0,0.00016318,2]
[362473876,1748328549447,-500.0,0.00016318,2]
[362473877,1748328549471,-582.57797299,0.00016318,2]
[362473878,1748328549494,-500.0,0.00016318,2]
[362473879,1748328549519,-582.57797299,0.00016318,2]
[362473880,1748328549542,-500.0,0.00016318,2]
[362473881,1748328549565,-500.0,0.00016318,2]
[362473882,1748328549589,-582.57797299,0.00016318,2]
[362473883,1748328549613,-582.57797299,0.00016318,2]
[362473884,1748328549636,-500.0,0.00016318,2]
[362473885,1748328549661,-582.57797299,0.00016318,2]
[362473886,1748328549684,-582.57797299,0.00016318,2]
[362473887,1748328549708,-582.57797299,0.00016318,2]
[362473888,1748328549732,-582.57797299,0.00016318,2]
[362473889,1748328549755,-500.0,0.00016318,2]
[362473890,1748328549778,-334.43364752,0.00016318,2]
[362473891,1748328549801,-582.57797299,0.00016318,2]
[362473892,1748328549824,-582.57797299,0.00016318,2]
[362473893,1748328549846,-500.0,0.00016318,2]
[362473894,1748328549870,-582.57797299,0.00016318,2]
[362473895,1748328549893,-500.0,0.00016318,2]
[362473896,1748328549916,-500.0,0.00016318,2]
[362473897,1748328549939,-500.0,0.00016318,2]
[362473898,1748328549962,-500.0,0.00016318,2]
[362473899,1748328549986,-288.33182118,0.00016318,2]
[362473900,1748328550010,-500.0,0.00016318,2]
[362473901,1748328550035,-582.57797299,0.00016318,2]
[362473902,1748328550059,-582.57797299,0.00016318,2]
[362473903,1748328550085,-582.57797299,0.00016318,2]
[362473904,1748328550108,-582.57797299,0.00016318,2]
[362473905,1748328550132,-582.57797299,0.00016318,2]
[362473906,1748328550158,-582.57797299,0.00016318,2]
[362473907,1748328550181,-582.57797299,0.00016318,2]
[362473908,1748328550204,-500.0,0.00016318,2]
[362473909,1748328550227,-500.0,0.00016318,2]
[362473910,1748328550249,-345.40815762,0.00016318,2]
[362473911,1748328550374,-2390.37070507,0.00016318,2]
[362473912,1748328553293,-3147.46114584,0.00016318,2]
[362473913,1748328570189,-799.68046749,0.00016318,2]
[362473914,1748328570228,-799.68046749,0.00016318,2]
[362473915,1748328570264,-799.68046749,0.00016318,2]
[362473916,1748328570300,-799.68046749,0.00016318,2]
[362473917,1748328570331,-799.68046749,0.00016318,2]
[362473918,1748328570369,-563.48553441,0.00016318,2]
[362473919,1748328570407,-6101.31738532,0.00016318,2]
[362473920,1748328570445,-6101.31738532,0.00016318,2]
[362473921,1748328570476,-6101.31738532,0.00016318,2]
[362473922,1748328570514,-6101.31738532,0.00016318,2]
[362473923,1748328570545,-6101.31738532,0.00016318,2]
[362473924,1748328570577,-6101.31738532,0.00016318,2]
[362473925,1748328570610,-6101.31738532,0.00016318,2]
[362473926,1748328570642,-6101.31738532,0.00016318,2]
[362473927,1748328570673,-25514.46554245,0.00016319,2]
[362473928,1748328570702,-50000.0,0.0001632,7]
[362473929,1748328570733,-300.0,0.00016333,2]
[362473930,1748328570764,-300.0,0.00016334,2]
[362473931,1748328570794,-300.0,0.00016334,2]
[362473932,1748328570824,-300.0,0.00016334,2]
[362473933,1748328570855,-1200.0,0.00016334,2]
[362473934,1748328570885,-160.0,0.00016335,2]
[362473935,1748328570914,-24900.0,0.00016337,2]
[362473936,1748328570946,-157.89,0.00016343,2]
[362473937,1748328570976,-1411.3921074,0.00016425,2]
[362473938,1748328571006,-233.96674809,0.00016438,2]
[362473939,1748328571034,-500.0,0.00016438,2]
[362473940,1748328571065,-500.0,0.00016438,2]
[362473941,1748328571099,-532.32200698,0.00016438,2]
[362473942,1748328571127,-169.3997799,0.00016438,3]
[362473943,1748328571149,-572.26622,0.00016606,2]
[362473944,1748328571171,-193.97,0.00016999,2]
[362473945,1748328571194,-2335.0,0.00017,2]
[362473946,1748328571216,-314.71326974,0.00017,7]
[362473947,1748328571415,-315.78,0.00017121,2]
[362473948,1748328571458,-591.705331,0.00017233,2]
[362473949,1748328571480,-331.58651419,0.00017234,2]
[362473950,1748328571505,-1162.51923082,0.000175,2]
[362473951,1748328574119,-1435.2288123,0.000175,2]
[362473952,1748328574140,-221.80494373,0.00017767,2]
[362473953,1748328574169,-84.79588012,0.00017767,2]
[362473954,1748328574192,-500.0,0.00017773,2]
[362473955,1748328574214,-500.0,0.00017773,2]
[362473956,1748328574237,-420.0,0.00017834,2]
[362473957,1748328574261,-173.11698972,0.00017851,2]
[362474013,1748328632234,-706.96424181,0.00016243,2]
[362474015,1748328632245,-500.0,0.00016318,2]
[362474017,1748328632255,-299.68046747,0.00016318,2]
[362474019,1748328632265,-298.56,0.00017009,2]
[362474021,1748328632274,-706.9642418,0.00017089,2]
[362474023,1748328632284,-781.6391029,0.00017412,2]
[362474025,1748328632294,-447.84,0.00017782,2]
[362474027,1748328632304,-246.88301028,0.00017851,2]
[362474029,1748328632314,-706.9642418,0.00017935,2]
[362474031,1748328632324,-1200.0,0.00018067,2]
[362474033,1748328632333,-209.93306783,0.00018068,2]
[362474035,1748328632343,-300.0,0.00018068,2]
[362474037,1748328632352,-300.0,0.00018068,2]
[362474039,1748328632362,-300.0,0.00018068,2]
[362474041,1748328632371,-10000.0,0.00018069,2]
[362474043,1748328632381,-329.8368446,0.00018082,2]
[362474045,1748328632391,-502.46373833,0.00018321,2]
[362474047,1748328632400,-1000.0,0.00018321,2]
[362474049,1748328632410,-597.12,0.00018555,2]
[362474051,1748328632419,-5000.0,0.00018705,2]
[362474053,1748328632428,-706.9642418,0.0001878,2]
[362474055,1748328632439,-514.27088189,0.00018785,2]
[362474057,1748328632448,-635.651022,0.00018791,2]
[362474059,1748328632457,-243.897276,0.00018791,2]
[362474061,1748328632467,-151.0,0.00018791,2]
[362474063,1748328632477,-151.0,0.00018791,2]
[362474065,1748328632491,-151.0,0.00018791,2]
[362474067,1748328632503,-1500.0,0.00018868,2]
[362474069,1748328632512,-363.57519576,0.00019,2]
[362474071,1748328632521,-363.57519548,0.00019141,2]
[362474073,1748328632531,-504.98172268,0.00019173,2]
[362474075,1748328632541,-615.88606291,0.00019173,2]
[362474078,1748328632551,-500.0,0.00019173,2]
[362474080,1748328632560,-500.67167304,0.00019173,2]
[362474082,1748328632569,-501.40980731,0.00019173,2]
[362474084,1748328632579,-500.0,0.00019173,2]
[362474086,1748328632588,-500.0,0.00019173,2]
[362474088,1748328632598,-500.0,0.00019173,2]
[362474090,1748328632607,-500.0,0.00019173,2]
[362474092,1748328632618,-500.0,0.00019173,2]
[362474094,1748328632627,-500.17687192,0.00019173,2]
[362474096,1748328632637,-500.0,0.00019173,2]
[362474098,1748328632647,-500.0,0.00019173,2]
[362474100,1748328632657,-500.0,0.00019173,2]
[362474101,1748328632667,-502.42709714,0.00019173,2]
[362474104,1748328632676,-502.26110878,0.00019173,2]
[362474106,1748328632686,-225.518676,0.00019173,2]
[362474108,1748328632695,-382.683759,0.00019173,2]
[362474109,1748328632705,-151.0,0.00019173,2]
[362474111,1748328632715,-382.683759,0.00019173,2]
[362474114,1748328632726,-151.0,0.00019173,2]
[362474115,1748328632735,-153.497281,0.00019173,2]
[362474117,1748328632744,-151.0,0.00019173,2]
[362474120,1748328632754,-435.854295,0.00019173,2]
[362474122,1748328632764,-435.854295,0.00019173,2]
[362474124,1748328632773,-291.858047,0.00019173,2]
[362474126,1748328632784,-755.0,0.00019175,2]
[362474128,1748328632794,-500.0,0.00019175,2]
[362474130,1748328632804,-500.0,0.00019175,2]
[362474132,1748328632813,-500.0,0.00019175,2]
[362474134,1748328632823,-500.0,0.00019175,2]
[362474136,1748328632833,-601.83227483,0.00019175,2]
[362474138,1748328632842,-500.0,0.00019175,2]
[362474140,1748328632851,-500.0,0.00019175,2]
[362474142,1748328632861,-41824.54698746,0.00019176,10]
[362474144,1748328632873,-1087.10331883,0.00019176,10]
[362474146,1748328632882,-212.62946336,0.00019176,10]
[362474148,1748328632892,-151.0,0.00019176,2]
[362474150,1748328632901,-582.237312,0.00019176,2]
[362474152,1748328632911,-158.390414,0.00019176,2]
[362474154,1748328632920,-151.0,0.00019176,2]
[362474170,1748328633057,-151.0,0.00019176,2]
[362474172,1748328633067,-151.0,0.00019176,2]
[362474174,1748328633076,-151.0,0.00019176,2]
[362474176,1748328633086,-151.0,0.00019176,2]
[362474178,1748328633097,-151.0,0.00019176,2]
[362474180,1748328633107,-151.0,0.00019176,2]
[362474182,1748328633116,-151.0,0.00019176,2]
[362474184,1748328633126,-450.0,0.00019178,2]
[362474186,1748328633135,-290.0,0.00019178,2]
[362474188,1748328633144,-151.0,0.00019178,2]
[362474190,1748328633154,-245.93083941,0.00019178,2]
[362474365,1748328637908,-500.0,0.00019175,2]
[362474366,1748328637918,-500.0,0.00019175,2]
[362474367,1748328637927,-515.25585158,0.00019175,2]
[362474368,1748328637937,-500.0,0.00019175,2]
[362474369,1748328637947,-500.0,0.00019175,2]
[362474370,1748328637956,-500.0,0.00019175,2]
[362474371,1748328637965,-500.0,0.00019175,2]
[362474372,1748328637975,-500.0,0.00019175,2]
[362474373,1748328637985,-500.0,0.00019175,2]
[362474374,1748328637994,-500.0,0.00019175,2]
[362474375,1748328638006,-500.0,0.00019175,2]
[362474376,1748328638016,-500.0,0.00019175,2]
[362474377,1748328638025,-375.8892636,0.00019175,2]
[362474378,1748328638035,-500.0,0.00019175,2]
[362474379,1748328638044,-500.0,0.00019175,2]
[362474380,1748328638054,-184.06916059,0.00019178,2]
[362474381,1748328638064,-430.0,0.00019178,2]
[362474383,1748328638073,-433.12312753,0.00019178,2]
[362474384,1748328638083,-296.81246102,0.00019178,2]
[362474385,1748328638094,-157.83810245,0.00019178,2]
[362474386,1748328638105,-508.69121599,0.00019178,2]
[362474387,1748328638114,-430.0,0.00019178,2]
[362474388,1748328638124,-501.90852557,0.00019178,2]
[362474389,1748328638134,-153.665933,0.00019178,2]
[362474390,1748328638143,-430.0,0.00019178,2]
[362474391,1748328638158,-400.0,0.00019178,2]
[362474392,1748328638168,-151.0,0.00019178,2]
[362474393,1748328638178,-430.0,0.00019178,2]
[362474394,1748328638188,-430.0,0.00019178,2]
[362474395,1748328638197,-430.0,0.00019178,2]
[362474396,1748328638207,-430.0,0.00019178,2]
[362474397,1748328638216,-430.0,0.00019178,2]
[362474398,1748328638226,-430.0,0.00019178,2]
[362474399,1748328638237,-350.0,0.00019178,2]
[362474400,1748328638246,-405.97715829,0.00019178,2]
[362474401,1748328638257,-212.18738199,0.00019178,2]
[362474402,1748328638266,-291.4799497,0.00019178,2]
[362474403,1748328638278,-240.0,0.00019178,2]
[362474404,1748328638288,-445.67964488,0.00019178,2]
[362474405,1748328638299,-430.0,0.00019178,2]
[362474406,1748328638309,-430.0,0.00019178,2]
[362474407,1748328638318,-430.0,0.00019178,2]
[362474408,1748328638328,-404.45666876,0.00019178,2]
[362474409,1748328638337,-430.0,0.00019178,2]
[362474410,1748328638347,-213.28876023,0.00019178,2]
[362474411,1748328638356,-430.0,0.00019178,2]
[362474412,1748328638366,-430.0,0.00019178,2]
[362474413,1748328638376,-430.0,0.00019178,2]
[362474414,1748328638386,-409.22163059,0.00019178,2]
[362474415,1748328638395,-230.98783582,0.00019178,2]
[362474416,1748328638405,-415.88761476,0.00019178,2]
[362474417,1748328638415,-275.41652247,0.00019178,2]
[362474418,1748328638426,-430.0,0.00019178,2]
[362474419,1748328638435,-430.0,0.00019178,2]
[362474420,1748328638445,-151.0,0.00019178,2]
[362474421,1748328638454,-430.0,0.00019178,2]
[362474422,1748328638467,-430.0,0.00019178,2]
[362474423,1748328638477,-430.0,0.00019178,2]
[362474424,1748328638486,-430.0,0.00019178,2]
[362474425,1748328638496,-151.0,0.00019178,2]
[362474426,1748328638506,-151.0,0.00019178,2]
[362474427,1748328638515,-315.82201057,0.00019178,2]
[362474428,1748328638525,-151.0,0.00019178,2]
[362474429,1748328638535,-151.0,0.00019178,2]
[362474430,1748328638546,-151.0,0.00019178,2]
[362474431,1748328638557,-430.0,0.00019178,2]
[362474432,1748328638567,-504.51250397,0.00019178,2]
[362474433,1748328638576,-502.89974966,0.00019178,2]
[362474435,1748328638585,-430.0,0.00019178,2]
[362474437,1748328638595,-474.86360552,0.00019178,2]
[362474439,1748328638605,-430.0,0.00019178,2]
[362474440,1748328638614,-260.0,0.00019178,2]
[362474441,1748328638624,-526.62914077,0.00019178,2]
[362474442,1748328638634,-430.0,0.00019178,2]
[362474443,1748328638644,-153.16879,0.00019178,2]
[362474444,1748328638653,-197.29933521,0.00019178,2]
[362474445,1748328638663,-430.0,0.00019178,2]
[362474446,1748328638673,-430.0,0.00019178,2]
[362474447,1748328638682,-430.0,0.00019178,2]
[362474448,1748328638691,-434.59658965,0.00019178,2]
[362474449,1748328638701,-151.0,0.00019178,2]
[362474450,1748328638712,-430.0,0.00019178,2]
[362474451,1748328638722,-430.97579018,0.00019178,2]
[362474452,1748328638732,-563.72596253,0.00019178,2]
[362474453,1748328638741,-430.0,0.00019178,2]
[362474454,1748328638751,-430.0,0.00019178,2]
[362474455,1748328638761,-431.96881648,0.00019178,2]
[362474456,1748328638771,-151.0,0.00019178,2]
[362474457,1748328638783,-151.0,0.00019178,2]
[362474458,1748328638793,-151.0,0.00019178,2]
[362474459,1748328638803,-430.0,0.00019178,2]
[362474460,1748328638813,-430.0,0.00019178,2]
[362474461,1748328638824,-430.0,0.00019178,2]
[362474462,1748328638834,-430.0,0.00019178,2]
[362474463,1748328638843,-430.0,0.00019178,2]
[362474464,1748328638853,-430.0,0.00019178,2]
[362474465,1748328638862,-430.0,0.00019178,2]
[362474466,1748328638872,-433.82025147,0.00019178,2]
[362474467,1748328638881,-430.0,0.00019178,2]
[362474468,1748328638891,-430.0,0.00019178,2]
[362474469,1748328638901,-151.0,0.00019178,2]
[362474470,1748328638911,-151.0,0.00019178,2]
[362474471,1748328638921,-430.0,0.00019178,2]
[362474472,1748328639107,-430.0,0.00019178,2]
[362474473,1748328639120,-367.42699172,0.00019178,2]
[362474474,1748328639131,-357.16532336,0.00019178,2]
[362474475,1748328639142,-430.0,0.00019178,2]
[362474476,1748328639151,-430.0,0.00019178,2]
[362474477,1748328639162,-430.0,0.00019178,2]
[362474478,1748328639173,-406.48397188,0.00019178,2]
[362474479,1748328639184,-430.0,0.00019178,2]
[362474480,1748328639193,-504.81630172,0.00019178,2]
[362474481,1748328639203,-430.0,0.00019178,2]
[362474482,1748328639213,-430.0,0.00019178,2]
[362474483,1748328639222,-430.0,0.00019178,2]
[362474484,1748328639233,-500.0,0.00019178,2]
[362474485,1748328639243,-430.0,0.00019178,2]
[362474486,1748328639254,-430.0,0.00019178,2]
[362474487,1748328639268,-430.0,0.00019178,2]
[362474488,1748328639278,-455.29490475,0.00019178,2]
[362474489,1748328639288,-430.0,0.00019178,2]
[362474490,1748328639297,-430.0,0.00019178,2]
[362474491,1748328639307,-430.0,0.00019178,2]
[362474492,1748328639318,-430.0,0.00019178,2]
[362474493,1748328639328,-430.0,0.00019178,2]
[362474494,1748328639338,-357.51626057,0.00019178,2]
[362474495,1748328639348,-430.0,0.00019178,2]
[362474496,1748328639358,-270.92312137,0.00019178,2]
[362474497,1748328639375,-198.36923394,0.00019178,2]
[362474498,1748328639385,-430.0,0.00019178,2]
[362474499,1748328639395,-391.63076606,0.00019178,2]
[362474500,1748328639408,-38.36923394,0.00019178,2]
[362474501,1748328639418,-435.66959753,0.00019178,2]
[362474502,1748328639428,-474.54,0.00019178,2]
[362474503,1748328639438,-430.0,0.00019178,2]
[362474504,1748328639448,-277.09635324,0.00019178,2]
[362474506,1748328639457,-434.30659656,0.00019178,2]
[362474507,1748328639467,-533.5840577,0.00019178,2]
[362474510,1748328639479,-430.0,0.00019178,2]
[362474511,1748328639488,-407.487726,0.00019178,2]
[362474512,1748328639498,-402.41386394,0.00019178,2]
[362474513,1748328639508,-430.0,0.00019178,2]
[362474514,1748328639519,-435.08249657,0.00019178,2]
[362474516,1748328639529,-430.0,0.00019178,2]
[362474517,1748328639540,-442.24225325,0.00019178,2]
[362474518,1748328639549,-430.0,0.00019178,2]
[362474519,1748328639559,-448.43153103,0.00019178,2]
[362474520,1748328639568,-433.28588007,0.00019178,2]
[362474521,1748328639578,-430.0,0.00019178,2]
[362474522,1748328639588,-430.0,0.00019178,2]
[362474523,1748328639597,-430.0,0.00019178,2]
[362474524,1748328639607,-430.0,0.00019178,2]
[362474525,1748328639617,-430.0,0.00019178,2]
[362474526,1748328639626,-415.65644248,0.00019178,2]
[362474527,1748328639636,-430.0,0.00019178,2]
[362474528,1748328639646,-430.0,0.00019178,2]
[362474529,1748328639655,-406.17873588,0.00019178,2]
[362474530,1748328639665,-430.0,0.00019178,2]
[362474531,1748328639675,-433.04636701,0.00019178,2]
[362474532,1748328639685,-430.0,0.00019178,2]
[362474533,1748328639695,-409.69547314,0.00019178,2]
[362474534,1748328639705,-408.58806194,0.00019178,2]
[362474535,1748328639714,-430.0,0.00019178,2]
[362474536,1748328639724,-430.0,0.00019178,2]
[362474537,1748328639734,-500.0,0.00019178,2]
[362474538,1748328639744,-430.0,0.00019178,2]
[362474539,1748328639754,-430.0,0.00019178,2]
[362474540,1748328639764,-430.0,0.00019178,2]
[362474541,1748328639774,-430.0,0.00019178,2]
[362474542,1748328639784,-413.03561571,0.00019178,2]
[362474543,1748328639794,-166.35129202,0.00019178,2]
[362474544,1748328639804,-432.50960129,0.00019178,2]
[362474545,1748328639814,-408.38828249,0.00019178,2]
[362474546,1748328639824,-536.60502441,0.00019178,2]
[362474548,1748328639835,-402.92455962,0.00019178,2]
[362474550,1748328639845,-404.77959492,0.00019178,2]
[362474551,1748328639854,-413.25645753,0.00019178,2]
[362474552,1748328639864,-151.0,0.00019178,2]
[362474553,1748328639874,-151.0,0.00019178,2]
[362474554,1748328639884,-151.0,0.00019178,2]
[362474555,1748328639894,-430.0,0.00019178,2]
[362474556,1748328639904,-430.0,0.00019178,2]
[362474557,1748328639915,-413.3761218,0.00019178,2]
[362474558,1748328639925,-430.0,0.00019178,2]
[362474559,1748328639936,-430.0,0.00019178,2]
[362474560,1748328639946,-430.0,0.00019178,2]
[362474561,1748328639955,-415.43198078,0.00019178,2]
[362474562,1748328639966,-422.4698659,0.00019178,2]
[362474563,1748328639975,-431.32852901,0.00019178,2]
[362474564,1748328639985,-401.68566451,0.00019178,2]
[362474565,1748328639995,-402.37600883,0.00019178,2]
[362474566,1748328640005,-402.07851287,0.00019178,2]
[362474567,1748328640015,-406.2963981,0.00019178,2]
[362474568,1748328640025,-430.0,0.00019178,2]
[362474569,1748328640035,-430.0,0.00019178,2]
[362474570,1748328640044,-582.237312,0.00019178,2]
[362474571,1748328640054,-582.237312,0.00019178,2]
[362474572,1748328640064,-582.237312,0.00019178,2]
[362474573,1748328640074,-530.42828225,0.00019178,2]
[362474574,1748328640084,-430.0,0.00019178,2]
[362474575,1748328640096,-430.0,0.00019178,2]
[362474576,1748328640105,-432.02951876,0.00019178,2]
[362474577,1748328640116,-430.0,0.00019178,2]
[362474578,1748328640127,-401.21415758,0.00019178,2]
[362474579,1748328640137,-430.0,0.00019178,2]
[362474580,1748328640146,-430.0,0.00019178,2]
[362474581,1748328640156,-430.0,0.00019178,2]
[362474582,1748328640166,-430.0,0.00019178,2]
[362474583,1748328640175,-430.0,0.00019178,2]
[362474584,1748328640186,-430.0,0.00019178,2]
[362474585,1748328640196,-430.0,0.00019178,2]
[362474586,1748328640205,-404.52621822,0.00019178,2]
[362474587,1748328640219,-430.0,0.00019178,2]
[362474588,1748328640228,-430.0,0.00019178,2]
[362474589,1748328640239,-430.02822067,0.00019178,2]
[362474590,1748328640248,-430.0,0.00019178,2]
[362474591,1748328640258,-430.0,0.00019178,2]
[362474592,1748328640267,-355.1773106,0.00019178,2]
[362474593,1748328640276,-430.0,0.00019178,2]
[362474594,1748328640286,-430.0,0.00019178,2]
[362474595,1748328640296,-430.0,0.00019178,2]
[362474596,1748328640306,-430.0,0.00019178,2]
[362474597,1748328640316,-430.0,0.00019178,2]
[362474598,1748328640325,-414.84690033,0.00019178,2]
[362474599,1748328640334,-151.0,0.00019178,2]
[362474600,1748328640345,-151.0,0.00019178,2]
[362474601,1748328640355,-182.073672,0.00019178,2]
[362474602,1748328640364,-400.49518034,0.00019178,2]
[362474603,1748328640374,-432.39411504,0.00019178,2]
[362474604,1748328640384,-414.10560202,0.00019178,2]
[362474605,1748328640393,-194.07949329,0.00019178,2]
[362474606,1748328641105,-207.74973319,0.00019178,2]
[362474607,1748328641116,-219.63408393,0.00019178,2]
[362474608,1748328641128,-210.36591607,0.00019178,2]
[362474609,1748328641138,-414.44469776,0.00019178,2]
[362474610,1748328641148,-430.0,0.00019178,2]
[362474611,1748328641157,-430.0,0.00019178,2]
[362474612,1748328641167,-430.0,0.00019178,2]
[362474613,1748328641177,-430.0,0.00019178,2]
[362474614,1748328641187,-430.0,0.00019178,2]
[362474615,1748328641196,-430.0,0.00019178,2]
[362474616,1748328641206,-151.0,0.00019178,2]
[362474617,1748328641215,-151.0,0.00019178,2]
[362474618,1748328641225,-402.09515805,0.00019178,2]
[362474619,1748328641234,-151.0,0.00019178,2]
[362474620,1748328641244,-411.18657176,0.00019178,2]
[362474621,1748328641254,-430.0,0.00019178,2]
[362474622,1748328641264,-405.88730152,0.00019178,2]
[362474623,1748328641274,-430.0,0.00019178,2]
[362474624,1748328641283,-430.0,0.00019178,2]
[362474625,1748328641416,-430.0,0.00019178,2]
[362474626,1748328641426,-430.0,0.00019178,2]
[362474627,1748328641435,-450.67602124,0.00019178,2]
[362474628,1748328641445,-151.0,0.00019178,2]
[362474629,1748328641455,-151.0,0.00019178,2]
[362474630,1748328641464,-151.0,0.00019178,2]
[362474631,1748328641473,-400.0,0.00019178,2]
[362474632,1748328641483,-151.0,0.00019178,2]
[362474633,1748328641491,-138.99776583,0.00019178,2]
[362474634,1748328641505,-120.62333049,0.00019178,2]
[362474635,1748328641515,-408.27376069,0.00019178,2]
[362474636,1748328641715,-300.0,0.00019174,2]
[362474637,1748328641725,-21.72623931,0.00019178,2]
[362474638,1748328641735,-430.0,0.00019178,2]
[362474639,1748328641745,-73.22830416,0.00019178,2]
[362474640,1748328641757,-77.77169584,0.00019178,2]
[362474641,1748328641767,-151.0,0.00019178,2]
[362474642,1748328641777,-151.0,0.00019178,2]
[362474643,1748328641787,-302.85852421,0.00019178,2]
[362474644,1748328641796,-430.0,0.00019178,2]
[362474645,1748328641806,-225.34450136,0.00019178,2]
[362474646,1748328641824,-215.48471676,0.00019178,2]
[362474647,1748328641834,-430.0,0.00019178,2]
[362474648,1748328641844,-241.768949,0.00019178,2]
[362474649,1748328641854,-430.0,0.00019178,2]
[362474650,1748328641864,-412.18998491,0.00019178,2]
[362474651,1748328641873,-445.92884731,0.00019178,2]
[362474652,1748328641883,-402.09651339,0.00019178,2]
[362474653,1748328641893,-430.0,0.00019178,2]
[362474654,1748328641904,-430.0,0.00019178,2]